bitfinex/quotes_ETHUSD_20220308
["timestamp","ask_amount","ask_price","bid_price","bid_amount"]
[1646721139256,1.22472941,2507.5,2507.4,1.29714]
[1646721139509,1.22472941,2507.5,2506.9,0.04965808]
[1646721139510,1.22472941,2507.5,2507.0,0.9973592]
[1646721139709,1.22472941,2507.5,2506.4,1.99499]
[1646721140008,1.62112941,2507.5,2506.4,1.99499]
[1646721140508,0.90020655,2507.1,2506.4,1.99499]
[1646721140708,0.90020655,2507.1,2506.5,0.9974935]
[1646721140912,0.90020655,2507.1,2506.5,1.2974935]
[1646721141911,0.90020655,2507.1,2506.5,1.0974935]
[1646721142914,1.89780655,2507.1,2506.5,0.3]
[1646721144148,0.90020655,2507.1,2506.6,0.99745]
[1646721144349,0.90020655,2507.1,2506.6,1.29745]
[1646721145554,0.90020655,2507.1,2506.7,1.9947641]
[1646721145853,0.90020655,2507.1,2506.8,0.99739]
[1646721146055,0.90020655,2507.1,2506.8,1.29739]
[1646721146853,0.90020655,2507.1,2506.8,0.3]
[1646721149304,0.90020655,2507.1,2506.7,0.3]
[1646721149703,0.90020655,2507.1,2506.6,0.4994]
[1646721149904,1.1078186,2506.7,2506.6,0.1994]
[1646721150310,4.6078186,2506.7,2506.4,1.9950887]
[1646721150504,4.6078186,2506.7,2505.8,0.0348401]
[1646721150505,1.5042186,2506.7,2505.8,0.0348401]
[1646721150951,1.5042186,2506.7,2505.9,0.1995]
[1646721151150,1.07940236,2506.0,2505.9,0.1995]
[1646721151352,1.07940236,2506.0,2505.9,1.1973046]
[1646721151757,1.07940236,2506.0,2505.9,0.9978046]
[1646721151956,1.47580236,2506.0,2505.2,1.99593]
[1646721152556,4.49807,2505.9,2505.3,0.1995]
[1646721152755,0.99805,2505.7,2505.3,0.1995]
[1646721152956,1.09265178,2505.6,2505.1,0.1995]
[1646721153156,4.59265178,2505.6,2505.1,0.1995]
[1646721153355,4.59265178,2505.6,2504.9,0.01484051]
[1646721153557,1.09265178,2505.6,2504.9,0.01484051]
[1646721153760,0.99832,2505.4,2504.9,0.01484051]
[1646721153958,0.99832,2505.4,2504.7,0.9983202]
[1646721153959,3.29494,2505.4,2504.8,0.1995]
[1646721154159,1.21637382,2505.1,2504.8,0.1995]
[1646721154358,0.60036618,2505.1,2504.7,1.2983202]
[1646721154797,1.59868618,2505.1,2504.7,1.2983202]
[1646721154998,0.60036618,2505.1,2504.8,0.99826]
[1646721155699,1.71,2506.2,2504.8,2.15626]
[1646721155900,1.219,2506.2,2504.8,2.15626]
[1646721156299,1.219,2506.2,2504.9,0.3964]
[1646721156504,0.90297174,2505.6,2505.3,0.9980554]
[1646721156699,0.90297174,2505.6,2505.2,1.9961107]
[1646721156900,3.5,2505.5,2504.8,0.01767483]
[1646721157504,3.5,2505.5,2504.8,1.01601663]
[1646721157703,3.5,2505.5,2504.8,0.9983418]
[1646721158263,1.00214954,2504.9,2504.8,0.9983418]
[1646721158449,1.00214954,2504.9,2504.8,1.2983418]
[1646721159252,0.3,2505.0,2504.8,1.2983418]
[1646721159450,0.99836,2505.1,2504.8,1.2983418]
[1646721159854,0.3,2505.2,2504.8,1.2983418]
[1646721160054,1.99671,2505.3,2504.8,1.2983418]
[1646721160256,1.99671,2505.3,2504.9,0.99826]
[1646721160257,0.3,2505.3,2504.9,0.99826]
[1646721160555,0.3,2505.3,2504.9,1.9964708]
[1646721160556,1.17884714,2505.3,2504.9,1.9964708]
[1646721160755,1.17884714,2505.3,2505.0,0.3]
[1646721161256,1.17884714,2505.3,2505.0,2.2964218]
[1646721161455,1.17884714,2505.3,2505.0,0.3]
[1646721161661,1.17884714,2505.3,2504.9,0.9982108]
[1646721161856,1.17884714,2505.3,2504.6,0.0159086]
[1646721162106,1.21700913,2504.9,2504.6,1.0143771]
[1646721162306,1.21700913,2504.9,2504.6,3.0110882]
[1646721162507,1.21700913,2504.9,2504.6,2.9951796]
[1646721162707,1.21700913,2504.9,2504.6,3.9935496]
[1646721162908,1.21700913,2504.9,2504.6,3.9435496]
[1646721163407,0.3,2505.0,2504.6,3.9435496]
[1646721163607,3.99356,2505.4,2504.8,0.9983569]
[1646721163807,4.29356,2505.4,2504.8,0.9983569]
[1646721164008,4.29356,2505.4,2504.8,1.2983569]
[1646721164211,0.99835,2505.3,2504.8,1.2983569]
[1646721164407,0.99835,2505.3,2504.8,2.30900296]
[1646721164608,0.3,2505.5,2504.8,2.30900296]
[1646721164812,1.8628,2506.0,2505.1,0.9981293]
[1646721164813,2.4086,2505.9,2505.1,0.9981293]
[1646721165013,2.4086,2505.9,2505.3,0.99803]
[1646721165413,2.4086,2505.9,2505.3,1.29803]
[1646721165610,2.4086,2505.9,2505.3,0.3]
[1646721165851,2.4086,2505.9,2505.3,1.20302592]
[1646721166051,2.4086,2505.9,2505.5,0.99794]
[1646721166251,2.4086,2505.9,2505.5,1.29794]
[1646721167255,2.4086,2505.9,2505.7,2.2958256]
[1646721167555,0.3,2506.0,2505.7,2.2958256]
[1646721167757,3.24385,2506.3,2505.7,2.2958256]
[1646721167959,4.24179,2506.3,2505.7,2.2958256]
[1646721168159,1.10486769,2506.0,2505.7,2.2958256]
[1646721168359,2.10290769,2506.0,2505.7,2.2958256]
[1646721168962,0.3,2506.1,2505.7,2.2958256]
[1646721169160,2.2459,2506.3,2505.7,2.2958256]
[1646721169161,0.99798,2506.2,2505.7,2.2958256]
[1646721169365,1.29798,2506.2,2505.7,2.2958256]
[1646721170207,1.29798,2506.2,2505.8,0.9979048]
[1646721170408,2.31585879,2506.2,2505.8,0.9979048]
[1646721170612,2.31585879,2506.2,2505.7,0.3]
[1646721170808,0.99832,2506.0,2505.1,0.3]
[1646721171011,0.99832,2506.0,2505.0,1.3]
[1646721171209,0.3964,2505.9,2504.9,0.31480836]
[1646721171410,0.99272109,2505.5,2504.9,1.12685654]
[1646721171610,0.99834,2505.8,2505.0,0.395924]
[1646721171810,0.99834,2505.8,2505.0,1.3942635]
[1646721171811,0.99831,2505.7,2505.0,1.3942635]
[1646721172012,0.99831,2505.7,2505.1,0.3]
[1646721172209,0.99834,2505.8,2505.1,0.3]
[1646721172410,2.6423,2506.3,2505.2,0.59536347]
[1646721172411,2.2459,2506.3,2505.2,0.59536347]
[1646721172711,2.2459,2506.3,2505.6,1.2961655]
[1646721172909,2.2459,2506.3,2505.7,1.9956822]
[1646721173110,2.2459,2506.3,2505.8,0.3]
[1646721173851,1.2151513,2506.5,2505.8,0.3]
[1646721174450,1.2151513,2506.5,2505.8,1.2978411]
[1646721174655,0.9979,2506.4,2505.8,1.2978411]
[1646721174851,1.12326678,2506.1,2505.8,1.2978411]
[1646721175256,1.12326678,2506.1,2505.8,0.3]
[1646721175452,1.07326678,2506.1,2505.8,0.3]
[1646721175851,1.07326678,2506.1,2505.7,0.3]
[1646721179811,1.07326678,2506.1,2505.4,2.1956471]
[1646721180008,1.05332162,2505.7,2505.4,2.4956471]
[1646721180209,0.53245074,2505.7,2505.4,2.1956471]
[1646721180856,1.9964,2505.9,2505.4,2.1956471]
[1646721181056,0.998,2506.4,2505.5,0.38779066]
[1646721181258,0.998,2506.4,2505.6,1.9959102]
[1646721181657,0.998,2506.4,2505.7,0.6880552]
[1646721181858,2.5284,2506.7,2505.8,4.2844552]
[1646721182066,2.34915203,2506.7,2506.3,1.09732098]
[1646721182263,0.02025203,2506.7,2506.4,4.28581701]
[1646721182466,0.00506201,2507.2,2506.6,3.3964]
[1646721182663,0.00506201,2507.2,2506.7,4.2844552]
[1646721182863,0.3991,2507.8,2506.9,3.8964]
[1646721183063,8.85223686,2508.3,2506.9,3.8964]
[1646721183064,0.20461441,2508.3,2507.1,0.3964]
[1646721183262,1.00707368,2508.1,2507.3,1.7262]
[1646721183464,1.20238233,2508.0,2507.4,0.3]
[1646721183863,0.1993,2507.9,2507.1,0.3]
[1646721184070,0.99753,2507.7,2507.1,0.3]
[1646721184261,3.00191368,2508.1,2507.2,1.9948027]
[1646721184262,1.20238233,2507.6,2507.2,1.9948027]
[1646721184516,1.12176919,2507.3,2507.2,1.9948027]
[1646721184718,0.99745,2507.8,2507.2,2.2948027]
[1646721184917,1.20321699,2507.7,2507.2,2.2948027]
[1646721185518,0.0038089,2507.6,2507.2,2.2948027]
[1646721185717,0.0038089,2507.6,2507.3,0.99734]
[1646721185918,0.0038089,2507.6,2507.3,1.9946733]
[1646721186119,0.0038089,2507.6,2507.3,1.2973333]
[1646721186319,1.22020468,2507.5,2507.3,1.2973333]
[1646721187123,1.22020468,2507.5,2507.3,0.3]
[1646721187323,1.22020468,2507.5,2507.2,2.2948027]
[1646721187924,1.22535092,2507.5,2507.2,2.2948027]
[1646721188355,1.20273129,2507.4,2507.2,1.9948027]
[1646721188557,1.20273129,2507.4,2506.2,10.1909804]
[1646721188558,5.3964,2507.1,2505.7,0.70732379]
[1646721188761,5.3964,2507.1,2504.8,0.72366181]
[1646721188762,3.0,2505.9,2504.8,0.72366181]
[1646721188957,3.0,2505.9,2504.6,0.99799]
[1646721188958,3.0,2504.9,2504.1,0.72392259]
[1646721189157,3.0,2504.5,2503.9,0.15736668]
[1646721189356,3.0,2504.5,2504.0,0.17448094]
[1646721189357,1.99802,2504.3,2504.0,0.17448094]
[1646721189555,6.132,2504.1,2503.4,0.0152512]
[1646721190163,8.13029,2504.1,2503.4,0.0152512]
[1646721190366,0.491,2504.0,2503.4,0.0152512]
[1646721190564,1.04539833,2503.9,2503.4,0.0152512]
[1646721190763,0.491,2503.9,2503.4,0.0152512]
[1646721191163,0.491,2504.2,2503.4,0.0152512]
[1646721191363,2.3603,2504.1,2503.4,0.0152512]
[1646721191565,5.0407,2504.1,2503.4,0.0152512]
[1646721191764,3.5,2504.0,2503.4,0.0152512]
[1646721192009,3.991,2504.0,2503.4,0.0152512]
[1646721192210,4.1906,2504.0,2503.4,0.0152512]
[1646721192512,4.1906,2504.0,2502.9,0.1122743]
[1646721192513,0.3464,2503.8,2502.9,0.1122743]
[1646721192710,0.491,2503.7,2502.9,0.1122743]
[1646721192915,1.06626951,2503.0,2502.9,0.0122743]
[1646721193111,1.55726951,2503.0,2502.9,0.0122743]
[1646721193513,1.55726951,2503.0,2501.7,0.10736666]
[1646721193514,2.0,2502.7,2501.7,0.10736666]
[1646721193714,2.0,2502.7,2501.7,0.00485232]
[1646721193715,0.31688979,2502.4,2501.7,0.00485232]
[1646721193912,0.01234727,2501.8,2501.4,0.33860012]
[1646721194111,0.01234727,2501.8,2501.4,0.00970464]
[1646721194112,0.491,2501.7,2501.4,0.00970464]
[1646721194712,2.50196743,2502.4,2501.4,0.00970464]
[1646721194713,5.0265,2501.6,2501.4,0.00970464]
[1646721194914,0.01215743,2502.4,2501.4,0.40830464]
[1646721194915,0.491,2502.1,2501.4,0.40830464]
[1646721195116,0.391,2502.1,2501.4,0.37771392]
[1646721195767,0.1998,2502.7,2501.4,0.37771392]
[1646721195954,0.491,2502.7,2501.4,0.37771392]
[1646721196155,0.491,2502.7,2501.4,0.67771392]
[1646721196555,0.491,2502.7,2501.8,1.16516783]
[1646721196757,3.5,2502.6,2501.4,0.67771392]
[1646721196956,3.5,2502.6,2501.4,0.37771392]
[1646721196957,0.491,2502.5,2501.4,0.37771392]
[1646721197159,5.5175,2502.5,2501.4,0.37771392]
[1646721197561,5.5175,2502.5,2501.9,0.00130261]
[1646721198165,5.5175,2502.5,2501.9,1.1252698]
[1646721198563,9.0175,2502.5,2501.9,0.3]
[1646721198764,10.31704,2502.5,2502.1,0.00433766]
[1646721199162,6.81704,2502.5,2502.1,0.00433766]
[1646721199362,10.31704,2502.5,2502.1,0.00433766]
[1646721199605,1.79054,2502.5,2502.1,0.00433766]
[1646721199806,5.29054,2502.5,2501.7,0.01940928]
[1646721200009,2.34511,2502.4,2502.2,0.00433749]
[1646721200211,2.0096688,2502.1,2501.8,0.06507204]
[1646721200410,3.991,2502.0,2501.8,0.06507204]
[1646721200608,0.491,2502.0,2501.8,7.204e-05]
[1646721200815,3.5,2501.9,2501.8,7.204e-05]
[1646721201011,5.0877,2501.9,2501.4,0.35830464]
[1646721201414,5.5,2501.7,2500.5,0.32782624]
[1646721201618,5.5,2501.7,2499.9,1.0187184]
[1646721201619,0.01239722,2500.6,2500.3,0.00970496]
[1646721201821,0.01239722,2500.6,2500.3,0.01940992]
[1646721201822,0.01281291,2500.4,2500.3,0.01940992]
[1646721202018,3.51281291,2500.4,2499.5,0.04232384]
[1646721202212,0.50381291,2500.4,2499.5,0.0076218]
[1646721202411,0.491,2500.4,2499.5,0.0076218]
[1646721202613,0.24101512,2500.3,2496.7,15.14139789]
[1646721202813,0.24101512,2500.3,2497.7,2.75]
[1646721202814,0.25,2499.5,2497.7,2.75]
[1646721203012,0.5037984,2499.4,2497.8,2.75]
[1646721203282,0.5037984,2499.4,2497.3,3.5205]
[1646721203283,0.5037984,2499.4,2498.0,2.75]
[1646721203590,5.53630922,2500.4,2499.0,1.0094956]
[1646721203591,0.491,2499.8,2499.0,1.0094956]
[1646721203782,0.25,2499.7,2499.0,1.0094956]
[1646721203979,0.491,2499.9,2499.0,1.0094956]
[1646721203980,0.741,2499.9,2499.0,1.0094956]
[1646721204180,0.25,2499.9,2499.0,1.0094956]
[1646721204379,0.25,2499.9,2499.0,0.9594956]
[1646721204580,0.25,2499.9,2499.6,0.99032457]
[1646721204782,0.25,2499.9,2498.8,0.19556751]
[1646721204783,11.13889743,2499.4,2498.8,0.19556751]
[1646721204982,11.13889743,2499.4,2499.3,0.00389733]
[1646721205387,7.26879743,2499.4,2499.3,0.00389733]
[1646721205583,7.26879743,2499.4,2499.3,0.19946484]
[1646721205888,7.26879743,2499.4,2499.3,1.36078405]
[1646721206086,7.26879743,2499.4,2499.3,1.66078405]
[1646721206284,0.25,2500.2,2499.3,1.66078405]
[1646721206688,0.04854746,2500.4,2499.5,2.75]
[1646721206901,2.9394,2500.5,2499.5,2.75]
[1646721207112,2.9394,2500.5,2500.4,1.08312627]
[1646721207413,2.9394,2500.5,2499.7,1.3]
[1646721207414,3.1894,2500.5,2499.7,1.3]
[1646721207614,0.25,2500.2,2499.7,1.3]
[1646721207812,0.25,2500.2,2499.6,0.00386641]
[1646721208013,0.25,2499.7,2499.6,0.00386641]
[1646721208213,1.1778,2499.7,2499.6,0.00386641]
[1646721208414,1.1778,2499.7,2499.2,0.00572392]
[1646721208618,0.25,2499.4,2499.2,0.00572392]
[1646721209014,4.241,2499.4,2499.2,0.00572392]
[1646721209214,6.5892,2499.3,2499.2,0.01144784]
[1646721209413,7.0802,2499.3,2499.2,0.01144784]
[1646721209615,3.5802,2499.3,2499.2,0.01144784]
[1646721210016,2.8237,2499.3,2499.2,0.01144784]
[1646721210619,1.00068,2499.8,2499.6,5.9263]
[1646721210887,4.01252582,2500.5,2499.6,6.2263]
[1646721210888,1.2195,2500.4,2499.6,6.2263]
[1646721211070,0.2,2500.2,2499.6,6.2263]
[1646721211272,3.00175,2500.8,2499.6,7.2263]
[1646721211273,1.00019,2500.8,2499.6,7.2263]
[1646721211475,3.10916751,2501.2,2499.6,7.2263]
[1646721211476,6.60916751,2501.2,2499.7,0.19556751]
[1646721211671,6.60916751,2501.2,2499.7,0.19652751]
[1646721211672,3.5,2501.2,2499.7,0.19652751]
[1646721211871,2.00028,2501.3,2499.8,0.00096]
[1646721212074,2.00028,2501.3,2499.8,0.19652751]
[1646721212574,5.00336796,2501.2,2499.8,0.00096]
[1646721212775,0.012303,2500.6,2499.8,0.00096]
[1646721213074,0.012303,2500.6,2499.6,5.9263]
[1646721213075,1.0872,2500.5,2499.6,5.9263]
[1646721213279,0.3964,2500.3,2499.6,5.45940831]
[1646721213481,0.01281057,2499.7,2499.2,0.01144784]
[1646721213676,1.88828,2499.6,2499.2,0.01144784]
[1646721214077,12.08,2499.2,2498.5,0.0069894]
[1646721214278,0.8874,2499.1,2498.5,0.0069894]
[1646721214508,3.8964,2499.0,2498.5,0.0069894]
[1646721214704,0.8874,2498.9,2498.5,0.0069894]
[1646721215105,2.7228,2499.2,2498.5,0.0069894]
[1646721215307,0.04854746,2499.3,2498.5,0.0069894]
[1646721216109,0.3964,2499.2,2498.5,0.0069894]
[1646721216311,1.39725,2499.1,2498.5,0.0069894]
[1646721216709,1.00085,2499.1,2498.5,0.0069894]
[1646721217109,0.3964,2499.0,2498.5,0.0069894]
[1646721217409,0.04854746,2499.3,2498.5,0.0069894]
[1646721218267,1.00075,2499.5,2499.1,0.3]
[1646721218567,0.3,2499.6,2499.1,0.3]
[1646721218770,2.00154,2499.6,2498.8,0.30412279]
[1646721218969,2.00154,2499.6,2498.8,0.00412279]
[1646721219170,0.3964,2499.5,2498.8,0.00412279]
[1646721219368,0.3964,2499.5,2498.5,0.0079494]
[1646721219369,3.8964,2499.5,2498.5,0.0079494]
[1646721219569,3.8964,2499.5,2498.5,0.0069894]
[1646721219570,0.3964,2499.2,2498.5,0.0069894]
[1646721219771,1.00083,2499.3,2499.1,0.0041223]
[1646721219971,1.49183,2499.3,2499.1,0.0041223]
[1646721220170,1.49183,2499.3,2498.5,0.0069894]
[1646721220171,0.14720333,2498.6,2498.5,0.0069894]
[1646721220769,0.14720333,2498.6,2498.1,0.07332603]
[1646721223012,1.03460333,2498.6,2498.1,0.07332603]
[1646721223211,1.03460333,2498.6,2498.2,0.00116435]
[1646721223412,0.63820333,2498.6,2498.2,0.00116435]
[1646721223812,0.63820333,2498.6,2498.2,0.05540725]
[1646721224212,0.63820333,2498.6,2498.2,0.0542429]
[1646721224418,4.13820333,2498.6,2498.3,0.00383986]
[1646721224813,4.13820333,2498.6,2498.3,0.05808276]
[1646721224814,0.63820333,2498.6,2498.3,0.05808276]
[1646721225016,4.13820333,2498.6,2498.3,0.05808276]
[1646721225414,4.53460333,2498.6,2498.1,0.01908313]
[1646721225614,8.59950333,2498.6,2498.1,0.01908313]
[1646721226263,8.79960333,2498.6,2498.1,0.01908313]
[1646721226463,20.87960333,2498.6,2498.1,0.01908313]
[1646721226664,8.79960333,2498.6,2498.1,0.01908313]
[1646721226863,8.79960333,2498.6,2498.2,0.00317338]
[1646721227067,8.79960333,2498.6,2497.3,0.00096]
[1646721227068,0.3964,2498.4,2497.3,0.00096]
[1646721227266,1.00141,2498.1,2497.3,0.00096]
[1646721227470,6.76093,2498.0,2497.7,8e-07]
[1646721227670,6.76093,2498.0,2496.9,0.20106]
[1646721227671,5.8964,2497.9,2496.9,0.00096]
[1646721227967,6.76093,2498.0,2496.7,0.2001]
[1646721227968,0.3964,2497.5,2496.7,0.2001]
[1646721228164,0.3964,2497.5,2496.8,0.00096]
[1646721228165,0.3964,2497.3,2496.8,0.00096]
[1646721228369,1.00172,2497.4,2496.6,1.22231024]
[1646721228667,3.5,2498.0,2496.7,0.2001]
[1646721228668,2.00268,2497.9,2496.7,0.2001]
[1646721228866,0.491,2498.2,2496.7,0.2001]
[1646721229064,0.491,2498.2,2496.7,0.20106]
[1646721229264,0.491,2498.2,2497.8,1.13591724]
[1646721229265,0.3964,2498.1,2497.8,1.13591724]
[1646721229518,2.20261,2498.5,2496.9,5.0184]
[1646721229519,5.8381,2498.4,2496.9,5.0184]
[1646721229708,5.8381,2498.4,2497.0,0.00096]
[1646721229906,5.8381,2498.4,2497.1,0.2001]
[1646721230205,5.8381,2498.4,2497.2,0.00096]
[1646721230206,1.00119,2498.0,2497.2,0.00096]
[1646721230407,1.00119,2498.0,2497.6,0.00113467]
[1646721231007,4.99219,2498.0,2497.6,0.00113467]
[1646721231206,2.49354,2498.0,2497.6,0.00113467]
[1646721231410,2.49354,2498.0,2496.7,0.2001]
[1646721231411,2.49354,2498.0,2497.0,0.3]
[1646721231608,1.00119,2498.0,2497.9,9.0]
[1646721231809,0.00513739,2498.0,2497.9,9.0]
[1646721232008,0.00513739,2498.0,2497.9,9.3]
[1646721232612,1.39753,2498.4,2497.9,9.3]
[1646721232812,0.00513752,2498.1,2497.9,9.3]
[1646721233458,0.00513752,2498.1,2497.9,9.0]
[1646721233658,0.00513752,2498.1,2497.9,9.3]
[1646721233957,4.13820333,2498.6,2498.3,0.90658628]
[1646721233958,0.14720333,2498.6,2498.3,0.90658628]
[1646721234156,0.14720333,2498.6,2497.9,9.3]
[1646721234157,0.0051375,2498.1,2497.9,9.3]
[1646721235057,0.14720333,2498.6,2497.9,9.3]
[1646721235462,1.54461333,2498.6,2498.0,1.12270923]
[1646721235658,1.14821333,2498.6,2497.9,9.3]
[1646721236058,1.80861333,2498.6,2497.9,9.3]
[1646721236257,2.29961333,2498.6,2497.9,9.3]
[1646721236666,2.0063726,2498.4,2497.9,9.0]
[1646721237311,2.00236,2498.4,2497.9,9.0]
[1646721237510,2.88976,2498.4,2497.9,9.0]
[1646721237708,0.0040126,2498.3,2497.9,9.0]
[1646721237911,0.491,2498.2,2497.9,9.0]
[1646721238106,1.88882,2498.2,2497.9,9.0]
[1646721238507,1.88882,2498.2,2497.9,5.08147269]
[1646721238707,1.88882,2498.2,2497.9,5.01796448]
[1646721238708,1.00142,2498.1,2497.9,5.01796448]
[1646721238910,0.491,2498.0,2497.9,5.01796448]
[1646721239508,2.5,2497.9,2497.8,2.736e-05]
[1646721239709,4.3964,2497.8,2497.3,0.01505492]
[1646721239912,4.3964,2497.8,2497.0,0.00096]
[1646721239913,2.00342,2497.5,2497.0,0.00096]
[1646721240110,5.13444,2497.5,2497.3,0.01505492]
[1646721240308,0.12739082,2497.1,2496.8,0.00096]
[1646721240508,1.71909082,2497.1,2496.6,0.23658076]
[1646721240755,1.71909082,2497.1,2496.6,0.03648076]
[1646721240958,2.67080082,2497.1,2496.6,0.03648076]
[1646721241767,2.27440082,2497.1,2496.6,0.03648076]
[1646721242565,0.12739082,2497.1,2496.6,1.43424076]
[1646721242963,3.00452,2498.0,2496.8,0.3964]
[1646721243163,2.00234,2498.3,2496.9,0.2001]
[1646721243365,2.00234,2498.3,2496.9,0.39566751]
[1646721243566,2.00234,2498.3,2497.0,0.19652751]
[1646721243868,1.00125,2498.1,2497.1,0.00096]
[1646721244067,2.41115,2498.1,2497.1,0.00096]
[1646721244520,2.00264,2498.0,2497.0,1.58586456]
[1646721244715,2.00264,2498.0,2497.1,0.3964]
[1646721245712,2.00264,2498.0,2497.0,0.50106]
[1646721245914,2.00264,2498.0,2497.0,0.5001]
[1646721246113,0.00406522,2497.7,2497.0,0.5001]
[1646721246512,0.00406522,2497.7,2497.4,1.05806615]
[1646721246715,0.00406522,2497.7,2497.4,0.3]
[1646721247118,2.00277,2497.8,2497.4,0.3]
[1646721247318,0.00406522,2497.7,2496.8,0.00096]
[1646721247518,3.50406522,2497.7,2496.6,0.53300827]
[1646721247722,3.50406522,2497.7,2496.6,0.03744076]
[1646721247723,0.3964,2497.5,2496.6,0.03744076]
[1646721247919,0.3964,2497.6,2496.7,0.2001]
[1646721248364,0.3964,2497.6,2496.7,1.20146]
[1646721248771,0.00509714,2497.3,2496.9,0.00344111]
[1646721248970,0.00509714,2497.3,2496.5,0.00464893]
[1646721249370,0.00509714,2497.3,2496.6,1.20159]
[1646721249571,1.00132,2498.1,2496.7,3.5]
[1646721249771,0.8912,2498.4,2496.8,4.58805214]
[1646721249972,0.2001,2498.5,2496.8,4.58805214]
[1646721249973,0.5965,2498.5,2496.8,1.08805214]
[1646721250171,0.5965,2498.5,2497.0,3.0]
[1646721250172,1.00121,2498.0,2497.0,3.0]
[1646721250378,5.89070333,2498.6,2497.2,1.00109]
[1646721250574,4.68920333,2498.6,2497.3,3.7001]
[1646721250774,4.68920333,2498.6,2498.5,0.93999925]
[1646721250775,0.14720333,2498.6,2498.5,0.93999925]
[1646721251183,0.14720333,2498.6,2498.5,1.23999925]
[1646721251383,2.90647263,2499.1,2498.6,0.5436]
[1646721251578,0.2001,2499.8,2498.6,0.5436]
[1646721251775,0.2001,2499.8,2499.5,0.94808511]
[1646721251776,1.62971471,2499.7,2499.5,0.94808511]
[1646721252035,0.2,2499.6,2499.5,0.94808511]
[1646721252434,0.2,2500.1,2499.5,0.94808511]
[1646721252639,1.62959032,2500.0,2499.5,0.94808511]
[1646721252835,0.2,2499.9,2499.5,0.94808511]
[1646721253240,7.22441,2500.6,2499.5,1.24808511]
[1646721253241,2.90631639,2500.5,2499.5,1.24808511]
[1646721253445,0.00505593,2499.9,2499.6,3.8964]
[1646721253640,0.00505593,2499.9,2499.6,0.3964]
[1646721253935,0.00505593,2499.9,2499.8,2.39651]
[1646721254238,0.00505593,2499.9,2499.8,2.69651]
[1646721254439,0.04854746,2500.8,2499.9,0.9736304]
[1646721254636,0.0163034,2500.3,2500.0,1.00009]
[1646721255036,0.0163034,2500.3,2500.0,1.30009]
[1646721255535,3.80937458,2501.3,2500.0,1.3000114]
[1646721255766,0.95384151,2501.5,2500.7,1.19531547]
[1646721255767,1.62899704,2501.2,2500.7,1.19531547]
[1646721255961,1.62899704,2501.1,2500.7,1.19531547]
[1646721256162,1.57899704,2501.0,2500.7,1.19531547]
[1646721256360,1.99988,2501.4,2500.7,0.49531547]
[1646721256764,0.99986,2501.2,2500.7,0.3]
[1646721256962,0.99986,2501.2,2500.0,2.99987]
[1646721256963,3.8964,2501.1,2500.3,0.1998]
[1646721257163,0.3964,2500.9,2499.4,0.1998]
[1646721257363,2.49144,2501.0,2499.3,5.123]
[1646721257364,0.3964,2500.7,2499.3,5.123]
[1646721257566,3.7439,2500.8,2499.3,5.123]
[1646721257764,0.2439,2500.8,2500.2,1.20112529]
[1646721257963,4.06872619,2501.1,2500.2,1.20112529]
[1646721257964,0.1998,2501.1,2500.2,1.20112529]
[1646721258164,1.14940902,2501.5,2500.2,1.20112529]
[1646721258165,0.70316868,2501.4,2500.2,1.20112529]
[1646721258366,2.67316868,2501.5,2500.2,1.20112529]
[1646721258567,0.00505713,2500.4,2500.2,1.89752529]
[1646721258765,0.00505713,2500.4,2500.3,0.1998]
[1646721259365,5.57929983,2501.9,2500.3,0.1998]
[1646721259366,3.5,2501.8,2500.3,0.1998]
[1646721259609,1.97,2501.9,2500.5,0.3964]
[1646721259809,1.97,2501.9,2500.6,1.5959034]
[1646721259810,0.02022542,2501.1,2500.6,1.5959034]
[1646721260109,0.02022542,2501.1,2500.7,0.3]
[1646721260309,0.02022542,2501.1,2500.7,0.4767083]
[1646721260511,3.5,2501.8,2500.9,1.03615299]
[1646721260719,0.00370344,2501.0,2500.9,1.03615299]
[1646721261715,0.9997,2501.8,2501.5,0.91544939]
[1646721262118,0.9997,2501.8,2501.5,0.3]
[1646721262518,0.3964,2501.6,2500.7,0.1998]
[1646721262817,0.3964,2501.6,2500.6,0.03349051]
[1646721262818,1.39639,2501.3,2500.1,6.1427]
[1646721263020,1.39639,2501.3,2500.1,4.9232]
[1646721263265,1.39639,2501.3,2500.6,1.09692898]
[1646721264060,1.39639,2501.3,2500.6,1.39692898]
[1646721264260,4.89639,2501.3,2500.6,1.39692898]
[1646721264461,4.89639,2501.3,2499.5,1.9999676]
[1646721264462,0.00487923,2501.1,2499.5,1.9999676]
[1646721264664,0.3964,2500.7,2499.5,1.9999676]
[1646721264861,0.3964,2500.7,2499.5,3.0000076]
[1646721265461,1.00014,2500.8,2500.4,1.06181472]
[1646721267008,0.0047697,2500.7,2500.4,1.06181472]
[1646721267514,0.0047697,2500.7,2499.8,1.30006]
[1646721267718,1.39656,2500.5,2499.4,2.00389425]
[1646721267914,2.99525,2500.7,2499.4,2.00389425]
[1646721267915,0.3964,2500.3,2499.4,0.00361425]
[1646721268114,1.4858,2500.7,2498.9,0.00295977]
[1646721268115,0.3964,2500.1,2498.9,0.00295977]
[1646721268315,0.3964,2499.9,2498.9,0.00295977]
[1646721268515,0.3964,2499.9,2499.2,1.15096142]
[1646721268712,1.397,2499.9,2498.9,0.00295977]
[1646721269516,1.00062,2499.7,2498.9,0.00295977]
[1646721269716,1.00062,2499.7,2499.1,1.23383083]
[1646721270320,0.95062,2499.7,2499.1,1.23383083]
[1646721270615,0.95062,2499.7,2499.1,1.53383083]
[1646721271268,0.95062,2499.7,2499.5,1.01560596]
[1646721271469,0.95062,2499.7,2499.1,0.3]
[1646721271670,0.95062,2499.7,2498.9,0.30270129]
[1646721271872,1.34702,2499.7,2498.9,0.00270129]
[1646721272672,1.34702,2499.7,2498.7,0.3]
[1646721272870,1.34702,2499.7,2498.9,0.00270129]
[1646721273271,0.3964,2499.5,2498.9,0.00270129]
[1646721273473,3.8964,2499.4,2498.9,0.00270129]
[1646721273675,0.8874,2499.3,2498.9,0.00270129]
[1646721273873,0.3964,2499.1,2498.0,0.00096]
[1646721274072,0.3964,2499.1,2497.8,0.01080993]
[1646721274073,0.3964,2498.6,2497.8,0.01080993]